fUST/lending_fUST_20250816
["ID","MTS","AMOUNT","RATE_DAILY","PERIOD"]
[379623274,1755348646985,-733.38,0.00022191,3]
[379623275,1755348646994,-480.0,0.00022191,3]
[379623276,1755348647003,-480.0,0.00022191,3]
[379623277,1755348647012,-480.0,0.00022191,3]
[379623278,1755348647022,-480.0,0.00022191,3]
[379623279,1755348647031,-480.0,0.00022191,3]
[379623280,1755348647041,-165.3144719,0.00022191,3]
[379623281,1755348647050,-480.0,0.00022191,3]
[379623282,1755348647059,-480.0,0.00022191,3]
[379623283,1755348647068,-480.0,0.00022191,3]
[379623284,1755348647077,-465.24592914,0.00022191,3]
[379623285,1755348647087,-480.0,0.00022191,3]
[379623286,1755348647096,-438.90224332,0.00022191,3]
[379623287,1755348647106,-480.0,0.00022191,3]
[379623288,1755348647116,-480.0,0.00022191,3]
[379623289,1755348647128,-460.0,0.00022191,3]
[379623290,1755348647138,-337.43573212,0.00022191,3]
[379623291,1755348647147,-460.0,0.00022191,3]
[379623292,1755348647157,-480.0,0.00022191,3]
[379623293,1755348647166,-480.0,0.00022191,3]
[379623294,1755348647176,-480.0,0.00022191,3]
[379623295,1755348647185,-480.0,0.00022191,3]
[379623296,1755348647195,-480.0,0.00022191,3]
[379623297,1755348647206,-480.0,0.00022191,3]
[379623298,1755348647215,-480.0,0.00022191,3]
[379623299,1755348647225,-480.0,0.00022191,3]
[379623300,1755348647235,-480.0,0.00022191,3]
[379623301,1755348647244,-400.0,0.00022191,3]
[379623302,1755348647253,-759.58,0.00022191,3]
[379623303,1755348647263,-480.0,0.00022191,3]
[379623304,1755348647272,-2016.7,0.00022191,3]
[379623305,1755348647281,-480.0,0.00022191,3]
[379623306,1755348647291,-480.0,0.00022191,3]
[379623307,1755348647300,-818.09,0.00022191,3]
[379623308,1755348647310,-480.0,0.00022191,3]
[379623309,1755348647319,-640.14,0.00022191,3]
[379623310,1755348647328,-480.0,0.00022191,3]
[379623311,1755348647338,-480.0,0.00022191,3]
[379623312,1755348647347,-480.0,0.00022191,3]
[379623313,1755348647356,-480.0,0.00022191,3]
[379623315,1755348647365,-462.31218879,0.00022191,3]
[379623316,1755348647375,-480.0,0.00022191,3]
[379623317,1755348647384,-480.0,0.00022191,3]
[379623318,1755348647393,-215.88313,0.00022191,7]
[379623319,1755348647403,-480.0,0.00022191,3]
[379623320,1755348647413,-480.0,0.00022191,3]
[379623321,1755348647422,-480.0,0.00022191,3]
[379623322,1755348647431,-215.88313,0.00022191,7]
[379623324,1755348647440,-154.069962,0.00022191,7]
[379623326,1755348647449,-480.0,0.00022191,3]
[379623327,1755348647458,-480.0,0.00022191,3]
[379623328,1755348647467,-500.0,0.00022191,3]
[379623329,1755348647476,-574.10796831,0.00022191,3]
[379623330,1755348647485,-480.0,0.00022191,3]
[379623331,1755348647494,-480.0,0.00022191,3]
[379623332,1755348647503,-480.0,0.00022191,3]
[379623333,1755348647512,-480.0,0.00022191,3]
[379623334,1755348647521,-480.0,0.00022191,3]
[379623335,1755348647530,-1143.41,0.00022191,3]
[379623336,1755348647539,-480.0,0.00022191,3]
[379623337,1755348647548,-480.0,0.00022191,3]
[379623338,1755348647557,-480.0,0.00022191,3]
[379623339,1755348647566,-480.0,0.00022191,3]
[379623340,1755348647575,-480.0,0.00022191,3]
[379623341,1755348647584,-480.0,0.00022191,3]
[379623342,1755348647594,-480.0,0.00022191,3]
[379623343,1755348647603,-739.95,0.00022191,3]
[379623344,1755348647612,-480.0,0.00022191,3]
[379623345,1755348647622,-480.0,0.00022191,3]
[379623346,1755348647631,-480.0,0.00022191,3]
[379623347,1755348647641,-8979.65,0.00022191,3]
[379623348,1755348647650,-460.0,0.00022191,3]
[379623349,1755348647660,-570.52,0.00022191,3]
[379623350,1755348647670,-2379.44,0.00022191,3]
[379623351,1755348647679,-480.0,0.00022191,3]
[379623352,1755348647688,-1132.94,0.00022191,3]
[379623353,1755348647698,-480.0,0.00022191,3]
[379623354,1755348647707,-480.0,0.00022191,3]
[379623355,1755348647716,-480.0,0.00022191,3]
[379623356,1755348647725,-480.0,0.00022191,3]
[379623357,1755348647734,-480.0,0.00022191,3]
[379623358,1755348647744,-480.0,0.00022191,3]
[379623359,1755348647753,-480.0,0.00022191,3]
[379623360,1755348647762,-480.0,0.00022191,3]
[379623361,1755348647775,-480.0,0.00022191,3]
[379623362,1755348647784,-480.0,0.00022191,3]
[379623363,1755348647793,-480.0,0.00022191,3]
[379623364,1755348647802,-285.58505684,0.00022191,3]
[379623365,1755348647811,-480.0,0.00022191,3]
[379623366,1755348647822,-480.0,0.00022191,3]
[379623367,1755348647831,-480.0,0.00022191,3]
[379623368,1755348647840,-480.0,0.00022191,3]
[379623369,1755348647851,-480.0,0.00022191,3]
[379623370,1755348647861,-480.0,0.00022191,3]
[379623371,1755348647870,-480.0,0.00022191,3]
[379623372,1755348647879,-480.0,0.00022191,3]
[379623373,1755348647888,-480.0,0.00022191,3]
[379623374,1755348647898,-724.65,0.00022191,3]
[379623375,1755348647907,-480.0,0.00022191,3]
[379623376,1755348647918,-480.0,0.00022191,3]
[379623377,1755348647928,-480.0,0.00022191,3]
[379623378,1755348647938,-480.0,0.00022191,3]
[379623379,1755348647948,-480.0,0.00022191,3]
[379623380,1755348647957,-480.0,0.00022191,3]
[379623381,1755348647967,-1263.57,0.00022191,3]
[379623382,1755348647976,-480.0,0.00022191,3]
[379623383,1755348647986,-480.0,0.00022191,3]
[379623384,1755348647995,-480.0,0.00022191,3]
[379623385,1755348648004,-480.0,0.00022191,3]
[379623386,1755348648013,-502.54,0.00022191,3]
[379623387,1755348648023,-480.0,0.00022191,3]
[379623388,1755348648033,-480.0,0.00022191,3]
[379623389,1755348648042,-480.0,0.00022191,3]
[379623390,1755348648051,-777.87,0.00022191,3]
[379623391,1755348648060,-512.7,0.00022191,3]
[379623392,1755348648070,-757.64,0.00022191,3]
[379623393,1755348648080,-480.0,0.00022191,3]
[379623394,1755348648089,-480.0,0.00022191,3]
[379623395,1755348648098,-480.0,0.00022191,3]
[379623396,1755348648107,-340.0,0.00022191,3]
[379623397,1755348648116,-480.0,0.00022191,3]
[379623398,1755348648125,-151.0,0.00022191,7]
[379623399,1755348648135,-480.0,0.00022191,3]
[379623400,1755348648144,-480.0,0.00022191,3]
[379623401,1755348648154,-480.0,0.00022191,3]
[379623402,1755348648164,-151.0,0.00022191,7]
[379623403,1755348648173,-480.0,0.00022191,3]
[379623404,1755348648182,-231.13990144,0.00022191,3]
[379623405,1755348648741,-500.0,0.00020773,2]
[379623406,1755348648751,-1000.0,0.00021321,2]
[379623407,1755348648761,-1000.0,0.00021868,2]
[379623408,1755348648772,-500.0,0.00022173,2]
[379623409,1755348648783,-273.31840559,0.00022191,3]
[379623410,1755348648793,-528.58,0.00022191,3]
[379623411,1755348648802,-1194.76,0.00022191,3]
[379623412,1755348648812,-480.0,0.00022191,3]
[379623413,1755348648822,-480.0,0.00022191,3]
[379623414,1755348648831,-480.0,0.00022191,3]
[379623415,1755348648840,-480.0,0.00022191,3]
[379623416,1755348648850,-480.0,0.00022191,3]
[379623417,1755348648859,-480.0,0.00022191,3]
[379623418,1755348648870,-480.0,0.00022191,3]
[379623419,1755348648880,-480.0,0.00022191,3]
[379623420,1755348648890,-480.0,0.00022191,3]
[379623421,1755348648899,-480.0,0.00022191,2]
[379623422,1755348648909,-480.0,0.00022191,3]
[379623423,1755348648919,-480.0,0.00022191,3]
[379623424,1755348648928,-480.0,0.00022191,3]
[379623425,1755348648938,-661.72,0.00022191,3]
[379623426,1755348648948,-162.89920866,0.00022191,3]
[379623427,1755348648957,-480.0,0.00022191,3]
[379623428,1755348648967,-480.0,0.00022191,3]
[379623429,1755348648976,-480.0,0.00022191,3]
[379623430,1755348648985,-632.048524,0.00022191,7]
[379623431,1755348648995,-1226.87,0.00022191,3]
[379623432,1755348649005,-1134.69,0.00022191,3]
[379623433,1755348649015,-480.0,0.00022191,3]
[379623434,1755348649024,-632.048524,0.00022191,7]
[379623435,1755348649034,-480.0,0.00022191,3]
[379623436,1755348649044,-857.71,0.00022191,3]
[379623437,1755348649053,-480.0,0.00022191,3]
[379623438,1755348649063,-887.99,0.00022191,3]
[379623439,1755348649072,-398.87390918,0.00022191,3]
[379623440,1755348649082,-480.0,0.00022191,3]
[379623441,1755348649091,-480.0,0.00022191,3]
[379623442,1755348649100,-480.0,0.00022191,3]
[379623443,1755348649109,-151.0,0.00022191,7]
[379623444,1755348649118,-151.0,0.00022191,7]
[379623445,1755348649128,-480.0,0.00022191,3]
[379623446,1755348649137,-911.08,0.00022191,3]
[379623447,1755348649146,-151.0,0.00022191,7]
[379623448,1755348649155,-151.0,0.00022191,7]
[379623449,1755348649165,-341.72060226,0.00022191,3]
[379623450,1755348649174,-375.8479886,0.00022191,3]
[379623451,1755348649184,-480.0,0.00022191,3]
[379623452,1755348649194,-480.0,0.00022191,3]
[379623453,1755348649203,-8317.3,0.00022191,3]
[379623454,1755348649213,-1627.26,0.00022191,3]
[379623455,1755348649222,-773.79,0.00022191,3]
[379623456,1755348649232,-462.1417622,0.00022191,7]
[379623457,1755348649242,-480.0,0.00022191,3]
[379623458,1755348649251,-480.0,0.00022191,3]
[379623459,1755348649261,-1690.26,0.00022191,3]
[379623460,1755348649270,-959.46,0.00022191,3]
[379623461,1755348649279,-420.0,0.00022191,3]
[379623462,1755348649289,-1048.55,0.00022191,3]
[379623463,1755348649298,-487.81,0.00022191,3]
[379623464,1755348649308,-480.0,0.00022191,3]
[379623465,1755348649318,-576.68,0.00022191,3]
[379623466,1755348649328,-621.1,0.00022191,3]
[379623467,1755348649338,-480.0,0.00022191,3]
[379623468,1755348649347,-480.0,0.00022191,3]
[379623469,1755348649357,-480.0,0.00022191,3]
[379623470,1755348649367,-480.0,0.00022191,3]
[379623471,1755348649376,-1026.63,0.00022191,3]
[379623472,1755348649385,-480.0,0.00022191,3]
[379623473,1755348649395,-480.0,0.00022191,3]
[379623474,1755348649404,-2190.76,0.00022191,3]
[379623475,1755348649414,-480.0,0.00022191,3]
[379623476,1755348649424,-4500.34,0.00022191,3]
[379623477,1755348649434,-480.0,0.00022191,3]
[379623478,1755348649444,-480.0,0.00022191,3]
[379623479,1755348649453,-480.0,0.00022191,3]
[379623480,1755348649463,-460.0,0.00022191,3]
[379623481,1755348649472,-480.0,0.00022191,3]
[379623482,1755348649481,-480.0,0.00022191,3]
[379623483,1755348649490,-2282.14,0.00022191,3]
[379623484,1755348649500,-1403.34,0.00022191,3]
[379623485,1755348649509,-428.13952706,0.00022191,3]
[379623486,1755348649519,-480.0,0.00022191,3]
[379623487,1755348649528,-480.0,0.00022191,3]
[379623488,1755348649538,-480.0,0.00022191,3]
[379623489,1755348649547,-480.0,0.00022191,3]
[379623490,1755348649556,-9263.12102056,0.00022191,3]
[379623491,1755348649574,-2647.16897944,0.00022191,3]
[379623492,1755348649583,-480.0,0.00022191,3]
[379623493,1755348649592,-480.0,0.00022191,3]
[379623494,1755348649601,-435.23803439,0.00022191,3]
[379623495,1755348649610,-480.0,0.00022191,3]
[379623496,1755348649620,-480.0,0.00022191,3]
[379623497,1755348649629,-480.0,0.00022191,3]
[379623498,1755348649638,-480.0,0.00022191,3]
[379623499,1755348649648,-4280.11,0.00022191,3]
[379623500,1755348649657,-480.0,0.00022191,3]
[379623501,1755348649667,-764.315464,0.00022191,7]
[379623502,1755348649676,-480.0,0.00022191,3]
[379623503,1755348649685,-498.09,0.00022191,3]
[379623504,1755348649695,-480.0,0.00022191,3]
[379623505,1755348649704,-764.315464,0.00022191,7]
[379623506,1755348649713,-1272.84,0.00022191,3]
[379623507,1755348649723,-480.0,0.00022191,3]
[379623508,1755348649732,-480.0,0.00022191,3]
[379623509,1755348649741,-996.23,0.00022191,3]
[379623510,1755348649750,-480.0,0.00022191,3]
[379623511,1755348649759,-480.0,0.00022191,3]
[379623512,1755348649770,-480.0,0.00022191,3]
[379623513,1755348649783,-1123.25,0.00022191,3]
[379623514,1755348649792,-480.0,0.00022191,3]
[379623515,1755348649801,-480.0,0.00022191,3]
[379623516,1755348649811,-522.4,0.00022191,3]
[379623517,1755348649821,-480.0,0.00022191,3]
[379623518,1755348649831,-480.0,0.00022191,3]
[379623519,1755348649840,-480.0,0.00022191,3]
[379623520,1755348649850,-480.0,0.00022191,3]
[379623521,1755348649859,-480.0,0.00022191,3]
[379623522,1755348649868,-480.0,0.00022191,3]
[379623523,1755348649878,-581.54,0.00022191,3]
[379623524,1755348649888,-2357.05,0.00022191,3]
[379623525,1755348649898,-151.0,0.00022191,7]
[379623526,1755348649907,-480.0,0.00022191,3]
[379623527,1755348649917,-151.0,0.00022191,7]
[379623528,1755348649926,-480.0,0.00022191,3]
[379623529,1755348649936,-480.0,0.00022191,3]
[379623530,1755348649947,-899.78,0.00022191,3]
[379623531,1755348649958,-151.0,0.00022191,7]
[379623532,1755348649968,-480.0,0.00022191,3]
[379623533,1755348649978,-151.0,0.00022191,7]
[379623534,1755348649987,-480.0,0.00022191,3]
[379623535,1755348649996,-480.0,0.00022191,3]
[379623536,1755348650006,-480.0,0.00022191,3]
[379623537,1755348650016,-480.0,0.00022191,3]
[379623538,1755348650025,-460.0,0.00022191,3]
[379623539,1755348650034,-480.0,0.00022191,3]
[379623540,1755348650043,-592.55096131,0.00022191,3]
[379623541,1755348650054,-513.28599369,0.00022191,3]
[379623542,1755348650064,-480.0,0.00022191,3]
[379623543,1755348650073,-480.0,0.00022191,3]
[379623544,1755348650082,-480.0,0.00022191,3]
[379623545,1755348650091,-480.0,0.00022191,3]
[379623546,1755348650100,-480.0,0.00022191,3]
[379623547,1755348650110,-923.61,0.00022191,3]
[379623548,1755348650119,-816.52,0.00022191,3]
[379623549,1755348650129,-480.0,0.00022191,3]
[379623550,1755348650138,-480.0,0.00022191,3]
[379623551,1755348650147,-480.0,0.00022191,3]
[379623552,1755348650157,-480.0,0.00022191,3]
[379623553,1755348650167,-460.0,0.00022191,3]
[379623554,1755348650176,-480.0,0.00022191,3]
[379623555,1755348650186,-480.0,0.00022191,3]
[379623556,1755348650196,-480.0,0.00022191,3]
[379623557,1755348650205,-480.0,0.00022191,3]
[379623558,1755348650215,-480.0,0.00022191,3]
[379623559,1755348650224,-480.0,0.00022191,3]
[379623560,1755348650234,-6168.87,0.00022191,3]
[379623561,1755348650244,-480.0,0.00022191,3]
[379623562,1755348650253,-480.0,0.00022191,3]
[379623563,1755348650262,-799.71,0.00022191,3]
[379623564,1755348650272,-480.0,0.00022191,3]
[379623565,1755348650281,-480.0,0.00022191,3]
[379623566,1755348650291,-480.0,0.00022191,3]
[379623567,1755348650300,-151.0,0.00022191,7]
[379623568,1755348650310,-151.0,0.00022191,7]
[379623569,1755348650320,-1074.31,0.00022191,3]
[379623570,1755348650329,-480.0,0.00022191,3]
[379623571,1755348650338,-480.0,0.00022191,3]
[379623572,1755348650348,-885.89,0.00022191,3]
[379623573,1755348650357,-480.0,0.00022191,3]
[379623574,1755348650366,-888.19004065,0.00022191,3]
[379623575,1755348650881,-664.86652129,0.00022191,3]
[379623576,1755348651166,-480.0,0.00021917,3]
[379623577,1755348651177,-34.6310393,0.00021917,3]
[379623578,1755348651348,-500.0,0.00020773,2]
[379623579,1755348651358,-500.0,0.00020773,2]
[379623580,1755348651368,-1007.38843515,0.00021321,2]
[379623581,1755348651378,-445.3689607,0.00021917,3]
[379623582,1755348651387,-160.19255921,0.00022173,2]
[379623583,1755348651397,-302.04343806,0.00022191,3]
[379623584,1755348651406,-480.0,0.00022191,3]
[379623585,1755348651417,-215.68093138,0.00022191,7]
[379623586,1755348651425,-480.0,0.00022191,3]
[379623587,1755348651433,-151.0,0.00022191,7]
[379623588,1755348651441,-1212.54,0.00022191,3]
[379623589,1755348651449,-480.0,0.00022191,3]
[379623590,1755348651458,-480.0,0.00022191,3]
[379623591,1755348651466,-480.0,0.00022191,3]
[379623592,1755348651474,-480.0,0.00022191,3]
[379623593,1755348651482,-480.0,0.00022191,3]
[379623594,1755348651491,-480.0,0.00022191,3]
[379623595,1755348651499,-521.79,0.00022191,3]
[379623596,1755348651508,-785.66,0.00022191,3]
[379623597,1755348651517,-480.0,0.00022191,3]
[379623598,1755348651526,-676.14,0.00022191,3]
[379623599,1755348651535,-480.0,0.00022191,3]
[379623600,1755348651544,-4087.48139,0.00022191,7]
[379623601,1755348651554,-2403.91388139,0.00022191,7]
[379623602,1755348691176,2422.97000005,0.000199,2]
[379623614,1755348849328,5000.0,0.0001999,5]
[379623616,1755348857462,50.10244859,0.0002,10]
[379623617,1755348857485,1105.38755141,0.0002,10]
[379623618,1755348862919,2342.20433343,0.000199,2]
[379623619,1755348864470,5000.0,0.0001999,10]
[379624081,1755349029793,200.4134314,0.0001967,2]
[379624088,1755349033948,5000.0,0.0002,2]
[379624129,1755349041391,2264.13085562,0.000199,2]
[379624615,1755349223656,2188.62083017,0.000199,2]
[379624661,1755349239635,5000.0,0.0002,2]
[379624664,1755349240327,-226.9714738,0.00020001,2]
[379624724,1755349255423,5000.0,0.0002,2]
[379624770,1755349270965,1899.24299797,0.0002,2]
[379624771,1755349270989,3100.75700203,0.0002,2]
[379624857,1755349292846,5000.0,0.0002,2]
[379624955,1755349355187,5000.0,0.0002,2]
[379624964,1755349371117,2793.99887485,0.0002,2]
[379624979,1755349400290,2221.03774304,0.000199,2]
[379625049,1755349579344,2147.00315176,0.000199,2]
[379625076,1755349667815,218.081025,0.00013699,2]
[379625077,1755349668806,-199.08154914,0.00020187,2]
[379625078,1755349670329,-18.99947586,0.00020187,2]
[379625079,1755349670359,-227.65948682,0.00020218,2]
[379625080,1755349671863,-111.34051318,0.00020218,2]
[379625081,1755349671886,-59.00986035,0.00020273,2]
[379625082,1755349694741,-194.15731026,0.00020273,2]
[379625083,1755349697027,-240.54138138,0.00020273,2]
[379625084,1755349698588,-106.29144801,0.00020273,2]
[379625085,1755349698610,-62.1899864,0.00020308,2]
[379625088,1755349762643,2117.11792961,0.000199,2]
[379625130,1755349832607,-255.0,0.0002031,2]
[379625132,1755349832617,-274.60010554,0.00020315,2]
[379625134,1755349832627,-2117.11792945,0.00020408,2]
[379625136,1755349832636,-2567.94300913,0.00020471,2]
[379625139,1755349832646,-339.0,0.00020551,2]
[379625141,1755349832656,-1200.0,0.00020568,2]
[379625143,1755349832665,-300.0,0.00020569,2]
[379625146,1755349832675,-300.0,0.00020569,2]
[379625149,1755349832684,-300.0,0.00020569,2]
[379625151,1755349832693,-300.0,0.00020569,2]
[379625153,1755349832703,-226.25251092,0.0002057,2]
[379625154,1755349832712,-500.0,0.0002057,2]
[379625157,1755349832722,-500.0,0.0002057,2]
[379625159,1755349832732,-500.0,0.0002057,2]
[379625160,1755349832741,-633.28983752,0.0002057,2]
[379625162,1755349832751,-328.20585975,0.0002057,2]
[379625165,1755349832760,-500.0,0.0002057,2]
[379625166,1755349832770,-500.0,0.0002057,2]
[379625169,1755349832779,-500.0,0.0002057,2]
[379625170,1755349832788,-500.0,0.0002057,2]
[379625173,1755349832797,-500.0,0.0002057,2]
[379625175,1755349832806,-500.0,0.0002057,2]
[379625177,1755349832816,-1200.0,0.0002057,2]
[379625178,1755349832825,-6205.68761446,0.00020571,2]
[379625181,1755349832837,-5278.90602124,0.00020571,2]
[379625183,1755349832847,-2428.53693353,0.00020571,2]
[379625185,1755349832859,-847.999995,0.00020571,2]
[379625187,1755349832870,-32672.97014552,0.00020571,2]
[379625189,1755349832880,-280.03649448,0.00020611,2]
[379625191,1755349832889,-218.91,0.00020668,10]
[379625193,1755349832899,-168.0,0.0002067,2]
[379625195,1755349832908,-5672.38513322,0.0002067,2]
[379625197,1755349832917,-1388.7651852,0.0002067,2]
[379625198,1755349832927,-500.0,0.00020673,2]
[379625199,1755349832936,-500.0,0.00020673,2]
[379625201,1755349832946,-163.65822511,0.00020673,2]
[379625202,1755349832955,-500.0,0.00020673,2]
[379625204,1755349832965,-500.0,0.00020673,2]
[379625206,1755349832974,-501.14541372,0.00020673,2]
[379625209,1755349832986,-501.23711248,0.00020673,2]
[379625211,1755349832995,-500.0,0.00020673,2]
[379625213,1755349833005,-500.0,0.00020673,2]
[379625215,1755349833014,-500.0,0.00020673,2]
[379625217,1755349833023,-500.0,0.00020673,2]
[379625219,1755349833032,-500.0,0.00020673,2]
[379625220,1755349833042,-500.0,0.00020673,2]
[379625222,1755349833051,-500.0,0.00020673,2]
[379625224,1755349833062,-277.02070639,0.00020673,2]
[379625226,1755349833072,-213.03954022,0.00020673,2]
[379625228,1755349833082,-500.0,0.00020673,2]
[379625231,1755349833091,-212.21995463,0.00020673,2]
[379625232,1755349833101,-501.59227983,0.00020673,2]
[379625234,1755349833111,-502.98473716,0.00020673,2]
[379625236,1755349833121,-500.0,0.00020673,2]
[379625238,1755349833131,-500.0,0.00020673,2]
[379625240,1755349833140,-500.0,0.00020673,2]
[379625242,1755349833150,-500.0,0.00020673,2]
[379625244,1755349833160,-500.0,0.00020673,2]
[379625246,1755349833171,-500.46417697,0.00020673,2]
[379625248,1755349833180,-500.0,0.00020673,2]
[379625250,1755349833190,-224.57308497,0.00020677,2]
[379625252,1755349833200,-500.0,0.00020678,2]
[379625254,1755349833209,-151.0,0.00020678,2]
[379625256,1755349833218,-151.0,0.00020678,2]
[379625258,1755349833228,-500.0,0.00020678,2]
[379625260,1755349833237,-151.0,0.00020678,2]
[379625262,1755349833247,-500.0,0.00020678,2]
[379625265,1755349833257,-151.0,0.00020678,2]
[379625267,1755349833266,-500.0,0.00020678,2]
[379625268,1755349833276,-500.0,0.00020678,2]
[379625271,1755349833287,-151.0,0.00020678,2]
[379625273,1755349833297,-500.0,0.00020678,2]
[379625283,1755349833474,-151.0,0.00020678,2]
[379625284,1755349833484,-500.0,0.00020678,2]
[379625285,1755349833494,-151.0,0.00020678,2]
[379625286,1755349833504,-500.0,0.00020678,2]
[379625287,1755349833515,-151.0,0.00020678,2]
[379625288,1755349833525,-500.0,0.00020678,2]
[379625289,1755349833535,-12483.26033606,0.00020678,2]
[379625290,1755349833548,-2127.13148235,0.00020678,2]
[379625291,1755349833560,-333.86999323,0.00020678,2]
[379625292,1755349833583,-401.70588922,0.00020678,2]
[379625293,1755349833596,-300.0,0.00020678,2]
[379625294,1755349833609,-2196.55474714,0.00020678,2]
[379625295,1755349833619,-151.0,0.00020678,2]
[379625296,1755349833629,-450.07753448,0.00020678,2]
[379625297,1755349833641,-151.0,0.00020678,2]
[379625298,1755349833651,-151.0,0.00020678,2]
[379625299,1755349833661,-151.0,0.00020678,2]
[379625300,1755349833671,-151.0,0.00020678,2]
[379625301,1755349833681,-151.0,0.00020678,2]
[379625302,1755349833691,-151.0,0.00020678,2]
[379625303,1755349833700,-151.0,0.00020678,2]
[379625305,1755349833709,-151.0,0.00020678,2]
[379625306,1755349833719,-151.0,0.00020678,2]
[379625307,1755349833728,-216.01363067,0.00020678,2]
[379625308,1755349833738,-500.0,0.00020678,2]
[379625309,1755349833747,-18977.35408771,0.0002069,2]
[379625334,1755349838659,-829.92113084,0.0002069,2]
[379625337,1755349838671,-296.25,0.0002069,2]
[379625339,1755349838683,-13740.61178243,0.0002069,2]
[379625341,1755349838694,-1025.92947994,0.0002069,2]
[379625349,1755349838770,-335129.93351908,0.0002069,2]
[379625351,1755349838780,-594.0071978,0.000207,2]
[379625352,1755349838790,-177.42751876,0.000208,2]
[379625353,1755349838799,-290.36138761,0.000208,2]
[379625354,1755349838809,-500.57295883,0.000208,2]
[379625355,1755349838819,-500.0,0.000208,2]
[379625356,1755349838830,-500.0,0.000208,2]
[379625357,1755349838839,-339.0,0.0002086,2]
[379625358,1755349838849,-340.00736286,0.00020889,2]
[379625359,1755349838858,-1360.02945143,0.00020889,2]
[379625360,1755349838868,-617.13343661,0.00020889,2]
[379625361,1755349838878,-3060.06626571,0.00020889,2]
[379625362,1755349838888,-5440.11780571,0.00020889,2]
[379625363,1755349838897,-430.66087792,0.00020889,2]
[379625364,1755349838913,-2117.11792945,0.00020916,2]
[379625365,1755349838922,-8500.18407142,0.00020941,2]
[379625366,1755349838938,-2466.06521271,0.00020946,2]
[379625367,1755349838947,-500.0,0.00020952,2]
[379625368,1755349838958,-100000.0,0.0002099,2]
[379625369,1755349838970,-515.32,0.00021077,2]
[379625370,1755349838980,-331.0,0.00021164,2]
[379625371,1755349838990,-3363.98851517,0.00021216,5]
[379625372,1755349839001,-206.0,0.00021216,2]
[379625373,1755349839011,-1000.0,0.00021221,2]
[379625374,1755349839020,-502.43436582,0.00021221,2]
[379625375,1755349839030,-968.73082083,0.00021221,2]
[379625376,1755349839039,-1005.08806189,0.00021221,2]
[379625377,1755349839049,-1004.12150487,0.00021221,2]
[379625378,1755349839058,-1000.0,0.00021221,2]
[379625379,1755349839066,-1000.0,0.00021221,2]
[379625380,1755349839075,-305.87705026,0.00021221,2]
[379625381,1755349839085,-1000.0,0.00021221,2]
[379625382,1755349839094,-500.0,0.00021226,2]
[379625383,1755349839104,-206.0,0.0002125,2]
[379625384,1755349839114,-151.0,0.000213,3]
[379625385,1755349839124,-381.4854995,0.00021337,2]
[379625386,1755349839133,-501.5828686,0.00021348,2]
[379625387,1755349839143,-704.73304251,0.00021348,2]
[379625388,1755349839154,-600.0,0.00021369,2]
[379625389,1755349839164,-1720.92086817,0.00021387,2]
[379625390,1755349839174,-594.0071978,0.00021396,2]
[379625391,1755349839183,-151.0,0.000214,3]